[Event "CRO-ch Youth U19 2020"]
[Site "Vinkovci"]
[Date "2020.08.01"]
[Round "7.12"]
[White "Ghersinich, Enrico"]
[Black "Smetisko, Josip"]
[Result "1-0"]
[ECO "B07"]
[WhiteElo "2299"]
[BlackElo "1940"]
[Annotator "ChessBase"]
[PlyCount "73"]
[EventDate "2020.07.28"]
[EventType "swiss"]
[EventCountry "CRO"]
[SourceTitle "playchess.com"]
[Source "ChessBase"]
[SourceQuality "1"]
[TimeControl "5400+30"]

1. e4 {[%emt 0:00:30]} d6 {[%emt 0:00:30]} 2. d4 {[%emt 0:00:00]} Nf6 {[%emt 0:00:00]} 3. Nc3 {[%emt 0:00:00]} g6 {[%emt 0:00:00]} 4. Be2 {[%emt 0:01:30]} Bg7 {[%emt 0:00:00]} 5. h4 {[%emt 0:00:30]} h5 {[%emt 0:02:00]} 6. Bg5 {[%emt 0:01:30]} Nbd7 {[%emt 0:04:30]} 7. Nf3 {[%emt 0:01:30]} Ng4 {[%emt 0:08:30]} 8. Qd2 {[%emt 0:05:30]} c6 {[%emt 0:13:30]} 9. Nh2 {[%emt 0:04:30]} Ndf6 {[%emt 0:12:30]} 10. Nxg4 {[%emt 0:03:30]} Bxg4 {[%emt 0:00:30]} 11. f3 {[%emt 0:00:00]} Be6 {[%emt 0:01:30]} 12. O-O-O {[%emt 0:00:00]} Qa5 {[%emt 0:01:30]} 13. Kb1 {[%emt 0:07:30]} d5 {[%emt 0:10:30]} 14. Bxf6 {[%emt 0:03:30]} Bxf6 {[%emt 0:00:30]} 15. Nxd5 {[%emt 0:00:30]} Qxd2 {[%emt 0:01:30]} 16. Nxf6+ {[%emt 0:00:00]} exf6 {[%emt 0:00:00]} 17. Rxd2 {[%emt 0:00:00]} O-O-O {[%emt 0:02:00]} 18. c4 {[%emt 0:01:30]} f5 {[%emt 0:00:30]} 19. Rhd1 {[%emt 0:01:30]} Rhe8 {[%emt 0:01:30]} 20. e5 {[%emt 0:01:30]} f4 {[%emt 0:10:30]} 21. Kc2 {[%emt 0:02:30]} Bf5+ {[%emt 0:01:30]} 22. Bd3 {[%emt 0:01:30]} Kc7 {[%emt 0:12:02]} 23. Kc3 {[%emt 0:02:30]} Re6 {[%emt 0:04:01]} 24. Re1 {[%emt 0:04:30]} Rde8 {[%emt 0:00:50]} 25. Rde2 {[%emt 0:00:30]} Rd8 {[%emt 0:00:42]} 26. b4 {[%emt 0:01:30]} a6 {[%emt 0:03:37]} 27. a4 {[%emt 0:01:30]} b6 {[%emt 0:05:28]} 28. Be4 {[%emt 0:01:30]} Re7 {[%emt 0:00:33]} 29. b5 {[%emt 0:01:30]} axb5 {[%emt 0:00:43]} 30. axb5 {[%emt 0:00:00]} Red7 {[%emt 0:02:11]} 31. d5 {[%emt 0:01:00]} c5 {[%emt 0:00:57]} 32. d6+ {[%emt 0:01:30]} Kb8 {[%emt 0:00:00]} 33. Ra2 {[%emt 0:00:30]} Bxe4 {[%emt 0:00:22]} 34. Rxe4 {[%emt 0:00:30]} f6 {[%emt 0:00:08]} 35. Re1 {[%emt 0:02:30]} Ra7 {[%emt 0:01:12]} 36. Rxa7 {[%emt 0:00:30]} Kxa7 {[%emt 0:00:01]} 37. e6 {[%emt 0:01:30]} 1-0

[Event "CRO-ch Youth U19 2020"]
[Site "Vinkovci"]
[Date "2020.08.01"]
[Round "7.14"]
[White "Dasic, Jelena"]
[Black "Golub, Nikolina"]
[Result "0-1"]
[ECO "D02"]
[WhiteElo "1814"]
[BlackElo "1911"]
[Annotator "ChessBase"]
[PlyCount "86"]
[EventDate "2020.07.28"]
[EventType "swiss"]
[EventCountry "CRO"]
[SourceTitle "playchess.com"]
[Source "ChessBase"]
[SourceQuality "1"]
[TimeControl "5400+30"]

1. d4 {[%emt 0:00:30]} Nf6 {[%emt 0:00:30]} 2. Bf4 {[%emt 0:00:00]} d5 {[%emt 0:00:00]} 3. e3 {[%emt 0:00:00]} c5 {[%emt 0:00:00]} 4. c3 {[%emt 0:00:00]} Nc6 {[%emt 0:00:30]} 5. Nf3 {[%emt 0:00:00]} Qb6 {[%emt 0:00:30]} 6. Qc1 {[%emt 0:00:00]} Bf5 {[%emt 0:00:00]} 7. Nbd2 {[%emt 0:00:00]} e6 {[%emt 0:00:00]} 8. h3 {[%emt 0:00:30]} h6 {[%emt 0:01:30]} 9. Be2 {[%emt 0:00:00]} Be7 {[%emt 0:00:00]} 10. Ne5 {[%emt 0:00:00]} Rc8 {[%emt 0:03:00]} 11. Ndf3 {[%emt 0:02:30]} Ne4 {[%emt 0:05:30]} 12. Nxc6 {[%emt 0:01:30]} bxc6 {[%emt 0:02:30]} 13. Nd2 {[%emt 0:02:30]} cxd4 {[%emt 0:01:30]} 14. exd4 {[%emt 0:00:30]} c5 {[%emt 0:06:30]} 15. Nxe4 {[%emt 0:01:30]} Bxe4 {[%emt 0:00:30]} 16. f3 {[%emt 0:00:00]} Bg6 {[%emt 0:00:30]} 17. Be3 {[%emt 0:00:00]} Bh4+ {[%emt 0:02:30]} 18. Kf1 {[%emt 0:00:30]} c4 {[%emt 0:01:30]} 19. Bd1 {[%emt 0:05:30]} O-O {[%emt 0:05:30]} 20. Bc2 {[%emt 0:06:30]} Bxc2 {[%emt 0:02:30]} 21. Qxc2 {[%emt 0:00:30]} Rb8 {[%emt 0:02:30]} 22. Rb1 {[%emt 0:01:30]} Qa6 {[%emt 0:05:30]} 23. a3 {[%emt 0:13:30]} Rb6 {[%emt 0:01:30]} 24. g4 {[%emt 0:00:30]} Rfb8 {[%emt 0:01:30]} 25. Kg2 {[%emt 0:00:00]} Qb7 {[%emt 0:01:30]} 26. Bc1 {[%emt 0:01:00]} Be7 {[%emt 0:01:30]} 27. b4 {[%emt 0:03:30]} cxb3 {[%emt 0:00:30]} 28. Qe2 {[%emt 0:00:30]} b2 {[%emt 0:10:30]} 29. Bf4 {[%emt 0:06:30]} Rc8 {[%emt 0:00:30]} 30. Qd2 {[%emt 0:00:00]} Rb3 {[%emt 0:00:30]} 31. g5 {[%emt 0:01:00]} hxg5 {[%emt 0:00:30]} 32. Bxg5 {[%emt 0:00:00]} Bxg5 {[%emt 0:00:00]} 33. Qxg5 {[%emt 0:00:00]} Rbxc3 {[%emt 0:01:00]} 34. Rhg1 {[%emt 0:00:30]} Rc2+ {[%emt 0:13:30]} 35. Kh1 {[%emt 0:03:30]} g6 {[%emt 0:00:30]} 36. h4 {[%emt 0:00:30]} Qb3 {[%emt 0:04:30]} 37. Qf6 {[%emt 0:01:30]} Rc1 {[%emt 0:09:13]} 38. h5 {[%emt 0:00:30]} Rxb1 {[%emt 0:00:29]} 39. h6 {[%emt 0:00:30]} Rxg1+ {[%emt 0:00:04]} 40. Kxg1 {[%emt 0:00:00]} b1=Q+ {[%emt 0:00:10]} 41. Kg2 {[%emt 0:00:00]} Q3c2+ {[%emt 0:00:42]} 42. Kg3 {[%emt 0:00:00]} Qg1+ {[%emt 0:00:11]} 43. Kf4 {[%emt 0:00:00]} Qd2+ {[%emt 0:00:24]} 0-1

[Event "CRO-ch Youth U19 2020"]
[Site "Vinkovci"]
[Date "2020.08.01"]
[Round "7.15"]
[White "Smetisko, Marija"]
[Black "Muha, Magdalena"]
[Result "1/2-1/2"]
[ECO "C01"]
[WhiteElo "1917"]
[BlackElo "1720"]
[Annotator "NA"]
[PlyCount "74"]
[EventDate "2020.07.28"]
[EventType "swiss"]
[EventCountry "CRO"]
[SourceTitle "playchess.com"]
[Source "ChessBase"]
[SourceQuality "1"]
[TimeControl "5400+30"]

{[%evp 8,46,0,3,0,-2,20,4,28,18,18,18,36,27,27,20,12,13,0,18,36,20,33,8,9,11,31,0,0,0,0,32767,32767,32767,5,12,9,11,13,10,45]} 1. e4 {[%emt 0:00:30]} e6 {[%emt 0:00:30]} 2. d4 {[%emt 0:00:00]} d5 {[%emt 0:00:00]} 3. exd5 {[%emt 0:00:00]} exd5 {[%emt 0:00:00]} 4. Nc3 {[%emt 0:00:30]} c6 {[%emt 0:00:30]} 5. Bd3 {[%emt 0:00:30]} Bd6 {[%emt 0:00:30]} 6. Nge2 {[%emt 0:01:30]} Bg4 {[%emt 0:02:30]} 7. f3 {[%emt 0:03:30] C01: French: Exchange Variation.} Bh5 {[%emt 0:00:00]} 8. Bf4 {[%emt 0:03:30]} Ne7 {[%emt 0:07:00]} 9. Qd2 {[%emt 0:03:30]} Qc7 {[%emt 0:04:30]} 10. O-O-O {[%emt 0:05:30]} Nd7 {[%emt 0:03:30]} 11. Bxd6 {[%emt 0:10:30]} Qxd6 {[%emt 0:00:00] [#]} 12. Qf4 $146 {[%emt 0:01:30]} ({Predecessor:} 12. Nf4 Bg6 13. Nxg6 hxg6 14. g4 O-O-O 15. Rde1 Nf8 16. f4 Ne6 17. f5 Nf4 18. Kb1 {1-0 (32) Bokiej,P (2016)-Szybowicz,P (2017) Pieczyska 2007}) 12... Qxf4+ {[%emt 0:07:00]} 13. Nxf4 {[%emt 0:00:00]} Nf6 {[%emt 0:00:30]} (13... Bg6 $5) 14. Rhe1 {[%emt 0:07:00]} Kd7 {[%emt 0:01:30]} 15. Re5 {[%emt 0:12:30]} Bg6 $1 {[%emt 0:04:30]} 16. Rde1 {[%emt 0:02:30]} Rhe8 {[%emt 0:00:30]} 17. h4 {[%emt 0:01:30]} Bxd3 {[%emt 0:02:30]} 18. Nxd3 {[%emt 0:00:30]} Ng6 {[%emt 0:00:30]} 19. Rxe8 {[%emt 0:07:30]} Rxe8 {[%emt 0:08:30]} 20. Rxe8 {[%emt 0:00:00]} Kxe8 {[%emt 0:07:30]} 21. g3 {[%emt 0:00:00]} Nh5 {[%emt 0:03:30]} 22. Ne2 {[%emt 0:01:30]} f5 {[%emt 0:05:30]} 23. Ne5 {[%emt 0:08:30]} Ke7 $14 {[%emt 0:06:30]} 24. Nxg6+ {[%emt 0:06:30]} hxg6 {[%emt 0:00:30]} 25. Kd2 {[%emt 0:00:30]} Kf7 {[%emt 0:04:30]} 26. a4 {[%emt 0:01:30]} Nf6 {[%emt 0:01:30]} 27. Ke3 {[%emt 0:02:30]} Nd7 {[%emt 0:01:30]} 28. Kf4 {[%emt 0:00:40]} Kf6 {[%emt 0:01:30]} 29. b3 {[%emt 0:01:48]} Nf8 {[%emt 0:00:30]} 30. Ke3 {[%emt 0:02:29]} g5 {[%emt 0:01:30]} 31. hxg5+ {[%emt 0:00:54]} Kxg5 {[%emt 0:00:30]} 32. Nf4 {[%emt 0:00:33]} g6 {[%emt 0:01:30]} 33. a5 {[%emt 0:02:21]} Kf6 {[%emt 0:00:30]} 34. Nd3 {[%emt 0:01:46]} Ne6 {[%emt 0:02:30]} 35. Ne5 {[%emt 0:03:34]} a6 {[%emt 0:02:30]} 36. Nd7+ {[%emt 0:04:39]} Ke7 {[%emt 0:00:30]} 37. Nb6 {[%emt 0:03:32]} g5 {[%emt 0:01:30]} 1/2-1/2

[Event "CRO-ch Youth U19 2020"]
[Site "Vinkovci"]
[Date "2020.08.01"]
[Round "7.16"]
[White "Juric, Matea"]
[Black "Vujic, Agata"]
[Result "0-1"]
[ECO "C50"]
[WhiteElo "1559"]
[BlackElo "1621"]
[Annotator "NA RC"]
[PlyCount "24"]
[EventDate "2020.07.28"]
[EventType "swiss"]
[EventCountry "CRO"]
[SourceTitle "playchess.com"]
[Source "ChessBase"]
[SourceQuality "1"]
[TimeControl "5400+30"]

1. e4 {[%emt 0:00:30]} e5 {[%emt 0:00:30]} 2. Nf3 {[%emt 0:00:00]} Nf6 {[%emt 0:00:00]} 3. Nc3 {[%emt 0:00:00]} Nc6 {[%emt 0:00:00]} 4. Bc4 {[%emt 0:00:30]} Bc5 {[%emt 0:00:30]} 5. d3 {[%emt 0:00:30]} d6 {[%emt 0:00:30]} 6. h3 {[%emt 0:00:30]} Ne7 {[%emt 0:01:30]} 7. Bg5 {[%emt 0:04:30]} c6 {[%emt 0:01:30]} 8. d4 {[%emt 0:08:30]} exd4 {[%emt 0:02:30]} 9. Nxd4 {[%emt 0:00:30]} Qb6 {[%emt 0:02:30]} 10. Be3 {[%emt 0:22:30]} Qxb2 {[%emt 0:16:30]} 11. Na4 {[%emt 0:04:30]} Qb4+ {[%emt 0:10:30]} 12. c3 {[%emt 0:00:30]} Qxc4 {[%emt 0:00:30]} 0-1

[Event "CRO-ch Youth U19 2020"]
[Site "Vinkovci"]
[Date "2020.08.03"]
[Round "8.9"]
[White "Ghersinich, Enrico"]
[Black "Moric, Ivan"]
[Result "1-0"]
[ECO "B22"]
[WhiteElo "2299"]
[BlackElo "1755"]
[Annotator "ChessBase"]
[PlyCount "55"]
[EventDate "2020.07.28"]
[EventType "swiss"]
[EventCountry "CRO"]
[SourceTitle "playchess.com"]
[Source "ChessBase"]
[SourceQuality "1"]
[TimeControl "5400+30"]

1. e4 {[%emt 0:00:30]} c5 {[%emt 0:00:30]} 2. c3 {[%emt 0:00:00]} Nf6 {[%emt 0:00:30]} 3. e5 {[%emt 0:00:00]} Nd5 {[%emt 0:00:00]} 4. d4 {[%emt 0:00:30]} cxd4 {[%emt 0:00:00]} 5. Nf3 {[%emt 0:00:30]} d3 {[%emt 0:02:30]} 6. Bxd3 {[%emt 0:00:30]} e6 {[%emt 0:03:30]} 7. O-O {[%emt 0:02:30]} Nc6 {[%emt 0:01:30]} 8. Nbd2 {[%emt 0:05:30]} d6 {[%emt 0:01:30]} 9. Nc4 {[%emt 0:03:30]} dxe5 {[%emt 0:02:30]} 10. Ncxe5 {[%emt 0:00:30]} Nxe5 {[%emt 0:03:30]} 11. Nxe5 {[%emt 0:00:00]} a6 {[%emt 0:00:30]} 12. Qf3 {[%emt 0:15:00]} Qc7 {[%emt 0:05:30]} 13. Re1 {[%emt 0:01:30]} Bd6 {[%emt 0:03:30]} 14. Nc4 {[%emt 0:08:30]} Bxh2+ {[%emt 0:01:30]} 15. Kh1 {[%emt 0:00:00]} b5 {[%emt 0:02:30]} 16. Ne3 {[%emt 0:04:00]} Nf4 {[%emt 0:08:30]} 17. Be4 {[%emt 0:00:30]} Rb8 {[%emt 0:03:30]} 18. g3 {[%emt 0:00:30]} Nh3 {[%emt 0:07:30]} 19. Nf1 {[%emt 0:01:30]} O-O {[%emt 0:02:30]} 20. Kxh2 {[%emt 0:01:30]} f5 {[%emt 0:00:30]} 21. Bc6 {[%emt 0:03:30]} Nxf2 {[%emt 0:04:30]} 22. Bf4 {[%emt 0:00:00]} e5 {[%emt 0:04:30]} 23. Bxe5 {[%emt 0:01:00]} Ng4+ {[%emt 0:00:30]} 24. Qxg4 {[%emt 0:00:30]} Qxe5 {[%emt 0:01:30]} 25. Qg5 {[%emt 0:01:30]} Qc5 {[%emt 0:03:30]} 26. Re7 {[%emt 0:00:30]} g6 {[%emt 0:01:30]} 27. Rae1 {[%emt 0:01:30]} Qxc6 {[%emt 0:00:30]} 28. Qh6 {[%emt 0:00:30]} 1-0

[Event "CRO-ch Youth U19 2020"]
[Site "Vinkovci"]
[Date "2020.08.03"]
[Round "8.10"]
[White "Birkic, Josip"]
[Black "Cotic, Borna"]
[Result "0-1"]
[ECO "D48"]
[WhiteElo "1984"]
[BlackElo "2049"]
[Annotator "ChessBase"]
[PlyCount "120"]
[EventDate "2020.07.28"]
[EventType "swiss"]
[EventCountry "CRO"]
[SourceTitle "playchess.com"]
[Source "ChessBase"]
[SourceQuality "1"]
[TimeControl "5400+30"]

1. d4 {[%emt 0:04:30]} Nf6 {[%emt 0:00:30]} 2. c4 {[%emt 0:00:00]} e6 {[%emt 0:00:00]} 3. Nf3 {[%emt 0:00:00]} d5 {[%emt 0:00:00]} 4. Nc3 {[%emt 0:00:30]} dxc4 {[%emt 0:00:30]} 5. e3 {[%emt 0:00:30]} a6 {[%emt 0:00:00]} 6. Bxc4 {[%emt 0:00:30]} b5 {[%emt 0:00:00]} 7. Bd3 {[%emt 0:04:30]} Bb7 {[%emt 0:00:30]} 8. a3 {[%emt 0:02:30]} c5 {[%emt 0:00:30]} 9. dxc5 {[%emt 0:03:30]} Bxc5 {[%emt 0:00:00]} 10. O-O {[%emt 0:01:30]} O-O {[%emt 0:00:00]} 11. b4 {[%emt 0:00:30]} Be7 {[%emt 0:03:30]} 12. Bb2 {[%emt 0:04:30]} Nbd7 {[%emt 0:00:30]} 13. e4 {[%emt 0:04:30]} Nb6 {[%emt 0:05:30]} 14. Qe2 {[%emt 0:09:30]} Rc8 {[%emt 0:04:30]} 15. Rad1 {[%emt 0:05:30]} Qc7 {[%emt 0:05:30]} 16. Nd2 {[%emt 0:09:30]} Rfd8 {[%emt 0:09:30]} 17. f4 {[%emt 0:06:30]} Nc4 {[%emt 0:05:30]} 18. Nxc4 {[%emt 0:02:30]} bxc4 {[%emt 0:00:30]} 19. Bc2 {[%emt 0:03:30]} a5 {[%emt 0:02:30]} 20. b5 {[%emt 0:03:30]} Rxd1 {[%emt 0:02:30]} 21. Bxd1 {[%emt 0:03:30]} Rd8 {[%emt 0:01:30]} 22. Bc2 {[%emt 0:02:30]} Qd6 {[%emt 0:23:30]} 23. Kh1 {[%emt 0:06:30]} Qd2 {[%emt 0:00:30]} 24. Rf2 {[%emt 0:00:30]} Qxe2 {[%emt 0:00:30]} 25. Rxe2 {[%emt 0:00:30]} Nd7 {[%emt 0:00:00]} 26. Rd2 {[%emt 0:03:58]} Nc5 {[%emt 0:00:00]} 27. Rxd8+ {[%emt 0:00:37]} Bxd8 {[%emt 0:03:30]} 28. Kg1 {[%emt 0:02:30]} g5 {[%emt 0:00:30]} 29. f5 {[%emt 0:00:35]} Bf6 {[%emt 0:03:30]} 30. fxe6 {[%emt 0:03:25]} fxe6 {[%emt 0:02:30]} 31. Na4 {[%emt 0:03:34]} Bxb2 {[%emt 0:00:30]} 32. Nxb2 {[%emt 0:00:32]} c3 {[%emt 0:01:30]} 33. Nc4 {[%emt 0:03:50]} Bxe4 {[%emt 0:02:30]} 34. Bxe4 {[%emt 0:00:33]} Nxe4 {[%emt 0:00:30]} 35. Ne3 {[%emt 0:02:21]} Nd6 {[%emt 0:01:30]} 36. b6 {[%emt 0:00:49]} Kf7 {[%emt 0:00:30]} 37. Kf2 {[%emt 0:00:33]} Ke7 {[%emt 0:00:30]} 38. Ke2 {[%emt 0:01:22]} Kd7 {[%emt 0:00:30]} 39. Kd3 {[%emt 0:01:21]} Kc6 {[%emt 0:03:30]} 40. Kxc3 {[%emt 0:00:30]} Kxb6 {[%emt 0:00:30]} 41. Ng4 {[%emt 0:00:47]} Kc5 {[%emt 0:04:32]} 42. Nf6 {[%emt 0:00:30]} h6 {[%emt 0:00:41]} 43. g4 {[%emt 0:01:00]} Nf7 {[%emt 0:04:08]} 44. Kd3 {[%emt 0:01:00]} Ne5+ {[%emt 0:01:26]} 45. Kc3 {[%emt 0:00:39]} a4 {[%emt 0:08:14]} 46. h3 {[%emt 0:00:00]} Nc4 {[%emt 0:00:30]} 47. Ng8 {[%emt 0:00:27]} Nxa3 {[%emt 0:00:30]} 48. Nxh6 {[%emt 0:00:38]} Nb5+ {[%emt 0:00:30]} 49. Kb2 {[%emt 0:00:36]} Nd6 {[%emt 0:01:58]} 50. Ka3 {[%emt 0:00:34]} Kd4 {[%emt 0:00:03]} 51. Kxa4 {[%emt 0:00:03]} Ke4 {[%emt 0:00:44]} 52. Kb4 {[%emt 0:00:36]} Kf4 {[%emt 0:00:05]} 53. Kc5 {[%emt 0:00:35]} Ne4+ {[%emt 0:00:00]} 54. Kd4 {[%emt 0:00:48]} e5+ {[%emt 0:01:15]} 55. Kd5 {[%emt 0:00:40]} Nf2 {[%emt 0:00:30]} 56. Nf7 {[%emt 0:00:38]} e4 {[%emt 0:00:55]} 57. Kd4 {[%emt 0:00:42]} e3 {[%emt 0:00:03]} 58. Nxg5 {[%emt 0:00:35]} e2 {[%emt 0:00:35]} 59. Ne6+ {[%emt 0:00:07]} Kg3 {[%emt 0:00:35]} 60. g5 {[%emt 0:00:30]} e1=Q {[%emt 0:00:02]} 0-1

[Event "CRO-ch Youth U19 2020"]
[Site "Vinkovci"]
[Date "2020.08.03"]
[Round "8.11"]
[White "Jakrlin, Mihael"]
[Black "Purini, Bruno"]
[Result "0-1"]
[ECO "E18"]
[WhiteElo "2183"]
[BlackElo "2017"]
[Annotator "ChessBase"]
[PlyCount "126"]
[EventDate "2020.07.28"]
[EventType "swiss"]
[EventCountry "CRO"]
[SourceTitle "playchess.com"]
[Source "ChessBase"]
[SourceQuality "1"]
[TimeControl "5400+30"]

1. d4 {[%emt 0:00:30]} d5 {[%emt 0:00:30]} 2. Nf3 {[%emt 0:00:00]} Nf6 {[%emt 0:00:30]} 3. c4 {[%emt 0:00:00]} e6 {[%emt 0:00:30]} 4. g3 {[%emt 0:00:00]} b6 {[%emt 0:01:30]} 5. Bg2 {[%emt 0:00:00]} Bb7 {[%emt 0:00:30]} 6. cxd5 {[%emt 0:00:30]} exd5 {[%emt 0:02:30]} 7. Nc3 {[%emt 0:00:30]} Be7 {[%emt 0:04:30]} 8. O-O {[%emt 0:00:00]} O-O {[%emt 0:00:30]} 9. Bf4 {[%emt 0:02:00]} c5 {[%emt 0:02:30]} 10. dxc5 {[%emt 0:03:30]} bxc5 {[%emt 0:04:30]} 11. Qb3 {[%emt 0:00:30]} Qb6 {[%emt 0:01:30]} 12. Na4 {[%emt 0:00:30]} Qxb3 {[%emt 0:08:30]} 13. axb3 {[%emt 0:01:30]} Nbd7 {[%emt 0:02:30]} 14. Rfc1 {[%emt 0:02:30]} d4 {[%emt 0:08:30]} 15. Nxd4 {[%emt 0:01:30]} Bxg2 {[%emt 0:03:30]} 16. Nf5 {[%emt 0:00:30]} Rfe8 {[%emt 0:02:30]} 17. Kxg2 {[%emt 0:00:30]} Bf8 {[%emt 0:01:30]} 18. Rc2 {[%emt 0:01:30]} Re4 {[%emt 0:03:30]} 19. Rd1 {[%emt 0:12:30]} Rb4 {[%emt 0:02:30]} 20. Rd3 {[%emt 0:00:30]} Rc8 {[%emt 0:11:30]} 21. Rc4 {[%emt 0:03:30]} g6 {[%emt 0:05:30]} 22. Nd6 {[%emt 0:02:30]} Rcb8 {[%emt 0:01:30]} 23. Ne4 {[%emt 0:02:30]} Re8 {[%emt 0:03:30]} 24. Nxf6+ {[%emt 0:08:30]} Nxf6 {[%emt 0:00:30]} 25. Kf3 {[%emt 0:00:30]} Ne4 {[%emt 0:01:30]} 26. Nc3 {[%emt 0:03:30]} f5 {[%emt 0:15:25]} 27. Nd5 {[%emt 0:13:30]} Rb7 {[%emt 0:00:30]} 28. h4 {[%emt 0:00:30]} Bg7 {[%emt 0:00:30]} 29. Rc2 {[%emt 0:00:30]} h6 {[%emt 0:00:30]} 30. Be3 {[%emt 0:00:30]} Reb8 {[%emt 0:00:30]} 31. Bf4 {[%emt 0:00:30]} Re8 {[%emt 0:00:30]} 32. Kg2 {[%emt 0:00:30]} Kf7 {[%emt 0:00:30]} 33. f3 {[%emt 0:00:30]} Nf6 {[%emt 0:00:30]} 34. Ne3 {[%emt 0:00:30]} Nh5 {[%emt 0:00:30]} 35. Bd6 {[%emt 0:00:30]} f4 {[%emt 0:00:30]} 36. gxf4 {[%emt 0:00:30]} Rd7 {[%emt 0:00:30]} 37. Kf2 {[%emt 0:00:30]} Rxe3 {[%emt 0:00:30]} 38. Rxe3 {[%emt 0:00:30]} Rxd6 {[%emt 0:00:30]} 39. Re4 {[%emt 0:00:30]} Bf6 {[%emt 0:00:30]} 40. Ra4 {[%emt 0:00:30]} a6 {[%emt 0:00:30]} 41. e4 {[%emt 0:00:30]} Nxf4 {[%emt 0:00:30]} 42. Ke3 {[%emt 0:00:30]} Ne6 {[%emt 0:00:30]} 43. f4 {[%emt 0:00:30]} Bxh4 {[%emt 0:00:30]} 44. f5 {[%emt 0:00:30]} Bg5+ {[%emt 0:00:30]} 45. Kf2 {[%emt 0:00:30]} Nf4 {[%emt 0:00:30]} 46. fxg6+ {[%emt 0:00:30]} Kxg6 {[%emt 0:00:30]} 47. e5 {[%emt 0:00:30]} Nd3+ {[%emt 0:00:30]} 48. Kf1 {[%emt 0:00:30]} Nxe5 {[%emt 0:00:30]} 49. Rxc5 {[%emt 0:00:30]} Rd1+ {[%emt 0:00:30]} 50. Kg2 {[%emt 0:00:30]} Rd2+ {[%emt 0:00:30]} 51. Kh3 {[%emt 0:00:30]} Kf5 {[%emt 0:00:30]} 52. Kg3 {[%emt 0:00:30]} Rxb2 {[%emt 0:00:30]} 53. Rxe5+ {[%emt 0:00:30]} Kxe5 {[%emt 0:00:30]} 54. Ra5+ {[%emt 0:00:30]} Ke4 {[%emt 0:00:30]} 55. Rxa6 {[%emt 0:00:30]} Rxb3+ {[%emt 0:00:30]} 56. Kg2 {[%emt 0:00:30]} Kf5 {[%emt 0:00:30]} 57. Ra5+ {[%emt 0:00:30]} Kg4 {[%emt 0:00:30]} 58. Ra4+ {[%emt 0:00:30]} Bf4 {[%emt 0:00:30]} 59. Ra1 {[%emt 0:00:30]} Rb2+ {[%emt 0:00:30]} 60. Kh1 {[%emt 0:00:30]} Kh3 {[%emt 0:00:30]} 61. Ra3+ {[%emt 0:00:30]} Bg3 {[%emt 0:00:30]} 62. Ra1 {[%emt 0:00:30]} Rh2+ {[%emt 0:00:30]} 63. Kg1 {[%emt 0:00:30]} Bf2+ {[%emt 0:00:30]} 0-1

[Event "CRO-ch Youth U19 2020"]
[Site "Vinkovci"]
[Date "2020.08.03"]
[Round "8.12"]
[White "Baric, Marko"]
[Black "Smetisko, Josip"]
[Result "1/2-1/2"]
[ECO "B07"]
[WhiteElo "1831"]
[BlackElo "1936"]
[Annotator "ChessBase"]
[PlyCount "81"]
[EventDate "2020.07.28"]
[EventType "swiss"]
[EventCountry "CRO"]
[SourceTitle "playchess.com"]
[Source "ChessBase"]
[SourceQuality "1"]
[TimeControl "5400+30"]

1. e4 {[%emt 0:00:30]} d6 {[%emt 0:00:30]} 2. d4 {[%emt 0:00:00]} Nf6 {[%emt 0:00:00]} 3. Nc3 {[%emt 0:00:00]} g6 {[%emt 0:00:00]} 4. h3 {[%emt 0:00:30]} Bg7 {[%emt 0:00:30]} 5. Nge2 {[%emt 0:00:30]} Nc6 {[%emt 0:07:30]} 6. g4 {[%emt 0:08:30]} e5 {[%emt 0:06:30]} 7. Be3 {[%emt 0:05:30]} exd4 {[%emt 0:23:30]} 8. Nxd4 {[%emt 0:01:30]} Nxd4 {[%emt 0:02:30]} 9. Qxd4 {[%emt 0:03:30]} O-O {[%emt 0:00:30]} 10. Qd2 {[%emt 0:03:30]} Re8 {[%emt 0:01:30]} 11. f3 {[%emt 0:05:30]} Be6 {[%emt 0:13:30]} 12. O-O-O {[%emt 0:03:30]} Nd7 {[%emt 0:00:30]} 13. Kb1 {[%emt 0:14:30]} Ne5 {[%emt 0:04:30]} 14. Be2 {[%emt 0:03:30]} Nc4 {[%emt 0:00:30]} 15. Bxc4 {[%emt 0:02:30]} Bxc4 {[%emt 0:00:00]} 16. Bd4 {[%emt 0:42:00]} Be6 {[%emt 0:26:43]} 17. Bxg7 {[%emt 0:00:30]} Kxg7 {[%emt 0:00:30]} 18. h4 {[%emt 0:00:30]} h6 {[%emt 0:00:30]} 19. g5 {[%emt 0:00:30]} h5 {[%emt 0:00:30]} 20. f4 {[%emt 0:00:30]} Bg4 {[%emt 0:00:30]} 21. Rdf1 {[%emt 0:00:30]} c6 {[%emt 0:00:30]} 22. f5 {[%emt 0:00:30]} gxf5 {[%emt 0:00:30]} 23. exf5 {[%emt 0:00:30]} f6 {[%emt 0:00:30]} 24. Qf4 {[%emt 0:00:30]} d5 {[%emt 0:00:30]} 25. Rfg1 {[%emt 0:00:30]} Qe7 {[%emt 0:00:30]} 26. gxf6+ {[%emt 0:00:30]} Qxf6 {[%emt 0:00:30]} 27. Nd1 {[%emt 0:00:30]} Re4 {[%emt 0:00:30]} 28. Qc7+ {[%emt 0:00:30]} Re7 {[%emt 0:00:30]} 29. Qg3 {[%emt 0:00:30]} Qxf5 {[%emt 0:00:30]} 30. Ne3 {[%emt 0:00:30]} Qe4 {[%emt 0:00:30]} 31. Nxg4 {[%emt 0:00:30]} hxg4 {[%emt 0:00:30]} 32. Re1 {[%emt 0:00:30]} Qb4 {[%emt 0:00:30]} 33. Rxe7+ {[%emt 0:00:30]} Qxe7 {[%emt 0:00:30]} 34. Qxg4+ {[%emt 0:00:30]} Kh6 {[%emt 0:00:30]} 35. Rg1 {[%emt 0:00:30]} Qf7 {[%emt 0:00:30]} 36. Qg3 {[%emt 0:00:30]} Rf8 {[%emt 0:00:30]} 37. b3 {[%emt 0:00:30]} a6 {[%emt 0:00:30]} 38. Re1 {[%emt 0:00:30]} Re8 {[%emt 0:00:30]} 39. Qg5+ {[%emt 0:00:30]} Kh7 {[%emt 0:00:30]} 40. Rxe8 {[%emt 0:00:30]} Qxe8 {[%emt 0:00:30]} 41. h5 {[%emt 0:00:30]} 1/2-1/2